[Event "Titled Tuesday Blitz August 09 Early 2022"]
[White "Shapiro, Daniel"]
[Black "Jorquera, Marcelo"]
[WhiteFideId "2001780"]
[BlackFideId "3401197"]
[WhiteElo "2244"]
[BlackElo "2136"]
[Result "1-0"]
[Round "06"]
[TimeControl "180+1"]
[Date "2022.08.09"]
[WhiteClock "0:00:45"]
[BlackClock "0:00:06"]

1. d4 {[%clk 0:03:00]}  Nf6 {[%clk 0:02:59]} 2. c4 {[%clk 0:03:00]}  g6 {[%clk 0:02:59]} 3. Nc3 {[%clk 0:03:00]}  Bg7 {[%clk 0:03:00]} 4. e4 {[%clk 0:03:00]}  d6 {[%clk 0:03:01]} 5. Be2 {[%clk 0:03:00]}  O-O {[%clk 0:03:01]} 6. Nf3 {[%clk 0:03:00]}  e5 {[%clk 0:03:01]} 7. O-O {[%clk 0:03:00]}  exd4 {[%clk 0:03:01]} 8. Nxd4 {[%clk 0:03:00]}  Re8 {[%clk 0:03:02]} 9. f3 {[%clk 0:02:57]}  c6 {[%clk 0:03:02]} 10. Kh1 {[%clk 0:02:57]}  Nbd7 {[%clk 0:03:02]} 11. Bg5 {[%clk 0:02:53]}  Qb6 {[%clk 0:03:02]} 12. Nb3 {[%clk 0:02:45]}  a5 {[%clk 0:03:01]} 13. Qd2 {[%clk 0:02:05]}  a4 {[%clk 0:02:55]} 14. Be3 {[%clk 0:02:03]}  Qd8 {[%clk 0:02:53]} 15. Nc1 {[%clk 0:02:03]}  a3 {[%clk 0:02:31]} 16. b3 {[%clk 0:02:01]}  Qa5 {[%clk 0:02:23]} 17. Nd3 {[%clk 0:01:48]}  Ne5 {[%clk 0:02:00]} 18. Rac1 {[%clk 0:01:47]}  Nfd7 {[%clk 0:01:47]} 19. Nf2 {[%clk 0:01:44]}  Nc5 {[%clk 0:01:17]} 20. Qxd6 {[%clk 0:01:36]}  Ne6 {[%clk 0:01:15]} 21. Qd2 {[%clk 0:01:36]}  Rd8 {[%clk 0:01:10]} 22. Qc2 {[%clk 0:01:36]}  Nd4 {[%clk 0:01:08]} 23. Qb1 {[%clk 0:01:30]}  Nxe2 {[%clk 0:01:01]} 24. Nxe2 {[%clk 0:01:30]}  Be6 {[%clk 0:00:52]} 25. h3 {[%clk 0:01:29]}  Rd7 {[%clk 0:00:38]} 26. f4 {[%clk 0:01:29]}  Rad8 {[%clk 0:00:19]} 27. fxe5 {[%clk 0:01:27]}  Bxe5 {[%clk 0:00:18]} 28. Rfd1 {[%clk 0:01:14]}  Kg7 {[%clk 0:00:16]} 29. Rxd7 {[%clk 0:01:13]}  Rxd7 {[%clk 0:00:17]} 30. Rd1 {[%clk 0:01:13]}  h5 {[%clk 0:00:14]} 31. Rxd7 {[%clk 0:01:11]}  Bxd7 {[%clk 0:00:15]} 32. Bd4 {[%clk 0:01:10]}  Bxd4 {[%clk 0:00:13]} 33. Nxd4 {[%clk 0:01:10]}  Qe5 {[%clk 0:00:13]} 34. Qd3 {[%clk 0:01:08]}  Kh7 {[%clk 0:00:12]} 35. Nd1 {[%clk 0:01:05]}  Qf4 {[%clk 0:00:09]} 36. Kg1 {[%clk 0:01:00]}  Qc1 {[%clk 0:00:08]} 37. Kf2 {[%clk 0:00:56]}  c5 {[%clk 0:00:06]} 38. Qc2 {[%clk 0:00:52]}  Qa1 {[%clk 0:00:05]} 39. Ne2 {[%clk 0:00:50]}  Bc6 {[%clk 0:00:05]} 40. Nec3 {[%clk 0:00:50]}  Kh6 {[%clk 0:00:04]} 41. Qb1 {[%clk 0:00:49]}  Qxb1 {[%clk 0:00:03]} 42. Nxb1 {[%clk 0:00:48]}  Bxe4 {[%clk 0:00:04]} 43. Nxa3 {[%clk 0:00:49]}  f5 {[%clk 0:00:03]} 44. Nc3 {[%clk 0:00:49]}  Bc6 {[%clk 0:00:03]} 45. Nab5 {[%clk 0:00:46]}  g5 {[%clk 0:00:03]} 46. Na4 {[%clk 0:00:45]}  f4 {[%clk 0:00:03]} 47. Nxc5 {[%clk 0:00:44]}  g4 {[%clk 0:00:03]} 48. hxg4 {[%clk 0:00:45]}  hxg4 {[%clk 0:00:04]} 49. Nd4 {[%clk 0:00:43]}  g3+ {[%clk 0:00:04]} 50. Kg1 {[%clk 0:00:44]}  Kg5 {[%clk 0:00:03]} 51. Nce6+ {[%clk 0:00:43]}  Kg4 {[%clk 0:00:02]} 52. Nxc6 {[%clk 0:00:43]}  bxc6 {[%clk 0:00:02]} 53. a4 {[%clk 0:00:43]}  f3 {[%clk 0:00:02]} 54. gxf3+ {[%clk 0:00:42]}  Kxf3 {[%clk 0:00:03]} 55. a5 {[%clk 0:00:42]}  Ke4 {[%clk 0:00:03]} 56. a6 {[%clk 0:00:43]}  Kd3 {[%clk 0:00:04]} 57. a7 {[%clk 0:00:43]}  Kc3 {[%clk 0:00:05]} 58. a8=Q {[%clk 0:00:43]}  Kxb3 {[%clk 0:00:06]} 59. Qxc6 {[%clk 0:00:43]}  Kc3 {[%clk 0:00:06]} 60. Qf3+ {[%clk 0:00:44]}  Kb4 {[%clk 0:00:06]} 61. Qxg3 {[%clk 0:00:45]}  Kxc4 {[%clk 0:00:06]} 62. Kf2 {[%clk 0:00:45]}  Kd5 {[%clk 0:00:06]} 63. Ke3 {[%clk 0:00:45]} 1-0


[Site "https://www.chess.com"]

[Event "Titled Tuesday Blitz August 09 Early 2022"]
[White "Shuvalova, Polina"]
[Black "Gil Alba, Hector Luis"]
[WhiteFideId "24171760"]
[BlackFideId "3504670"]
[WhiteElo "2330"]
[BlackElo "2331"]
[Result "1-0"]
[Round "06"]
[TimeControl "180+1"]
[Date "2022.08.09"]
[WhiteClock "0:00:05"]
[BlackClock "0:00:01"]

1. Nf3 {[%clk 0:02:51]}  Nf6 {[%clk 0:02:58]} 2. c4 {[%clk 0:02:51]}  g6 {[%clk 0:02:58]} 3. b3 {[%clk 0:02:51]}  Bg7 {[%clk 0:02:58]} 4. Bb2 {[%clk 0:02:52]}  O-O {[%clk 0:02:58]} 5. g3 {[%clk 0:02:52]}  c5 {[%clk 0:02:58]} 6. Bg2 {[%clk 0:02:52]}  Nc6 {[%clk 0:02:58]} 7. O-O {[%clk 0:02:53]}  e6 {[%clk 0:02:55]} 8. d3 {[%clk 0:02:53]}  d5 {[%clk 0:02:46]} 9. cxd5 {[%clk 0:02:54]}  exd5 {[%clk 0:02:46]} 10. Nbd2 {[%clk 0:02:54]}  d4 {[%clk 0:02:45]} 11. Rc1 {[%clk 0:02:52]}  Qe7 {[%clk 0:02:41]} 12. Re1 {[%clk 0:02:45]}  Nd5 {[%clk 0:02:37]} 13. Qc2 {[%clk 0:02:23]}  b6 {[%clk 0:02:28]} 14. a3 {[%clk 0:02:16]}  Bb7 {[%clk 0:02:21]} 15. Nf1 {[%clk 0:02:05]}  Nc3 {[%clk 0:02:16]} 16. e3 {[%clk 0:02:00]}  Qd7 {[%clk 0:02:15]} 17. N3d2 {[%clk 0:01:34]}  Rfe8 {[%clk 0:02:02]} 18. Bxc3 {[%clk 0:01:30]}  dxc3 {[%clk 0:01:55]} 19. Ne4 {[%clk 0:01:30]}  Ne5 {[%clk 0:01:53]} 20. Red1 {[%clk 0:01:23]}  Rad8 {[%clk 0:01:49]} 21. Nxc3 {[%clk 0:01:02]}  Bxg2 {[%clk 0:01:41]} 22. Kxg2 {[%clk 0:01:03]}  Nxd3 {[%clk 0:01:39]} 23. f3 {[%clk 0:00:44]}  b5 {[%clk 0:01:20]} 24. Ne4 {[%clk 0:00:35]}  Rxe4 {[%clk 0:01:11]} 25. fxe4 {[%clk 0:00:33]}  Qg4 {[%clk 0:01:10]} 26. Kg1 {[%clk 0:00:24]}  Qxe4 {[%clk 0:01:04]} 27. Qg2 {[%clk 0:00:23]}  Qe8 {[%clk 0:00:59]} 28. Rc2 {[%clk 0:00:20]}  Qe6 {[%clk 0:00:40]} 29. Qe2 {[%clk 0:00:12]}  Qxb3 {[%clk 0:00:36]} 30. Rxc5 {[%clk 0:00:11]}  Bf8 {[%clk 0:00:25]} 31. Rc2 {[%clk 0:00:09]}  Rd7 {[%clk 0:00:05]} 32. Rcd2 {[%clk 0:00:07]}  Ne5 {[%clk 0:00:03]} 33. Rxd7 {[%clk 0:00:07]}  Nxd7 {[%clk 0:00:03]} 34. Rxd7 {[%clk 0:00:08]}  a5 {[%clk 0:00:03]} 35. Qf3 {[%clk 0:00:04]}  Bxa3 {[%clk 0:00:02]} 36. Qd5 {[%clk 0:00:04]}  Qxd5 {[%clk 0:00:02]} 37. Rxd5 {[%clk 0:00:05]}  b4 {[%clk 0:00:01]} 38. Rxa5 {[%clk 0:00:05]} 1-0


[Site "https://www.chess.com"]

[Event "Titled Tuesday Blitz August 09 Early 2022"]
[White "Skliarov, Viktor"]
[Black "Devaev, Alexander"]
[WhiteFideId "14106736"]
[BlackFideId "4169395"]
[WhiteElo "2257"]
[BlackElo "2185"]
[Result "1-0"]
[Round "06"]
[TimeControl "180+1"]
[Date "2022.08.09"]
[WhiteClock "0:00:17"]
[BlackClock "0:00:01"]

1. e4 {[%clk 0:03:00]}  c6 {[%clk 0:02:39]} 2. d4 {[%clk 0:02:58]}  d5 {[%clk 0:02:39]} 3. e5 {[%clk 0:02:58]}  Bf5 {[%clk 0:02:39]} 4. Nf3 {[%clk 0:02:59]}  e6 {[%clk 0:02:38]} 5. Be2 {[%clk 0:02:59]}  Nd7 {[%clk 0:02:39]} 6. O-O {[%clk 0:02:58]}  h6 {[%clk 0:02:39]} 7. a4 {[%clk 0:02:57]}  a5 {[%clk 0:02:37]} 8. Na3 {[%clk 0:02:52]}  Ne7 {[%clk 0:02:33]} 9. Ne1 {[%clk 0:02:47]}  Bg6 {[%clk 0:02:31]} 10. f4 {[%clk 0:02:45]}  h5 {[%clk 0:02:28]} 11. g3 {[%clk 0:02:42]}  Nf5 {[%clk 0:02:26]} 12. c3 {[%clk 0:02:35]}  Be7 {[%clk 0:02:25]} 13. Nd3 {[%clk 0:02:35]}  Qc7 {[%clk 0:01:56]} 14. Kg2 {[%clk 0:02:18]}  Qb6 {[%clk 0:01:52]} 15. Nc2 {[%clk 0:01:48]}  c5 {[%clk 0:01:43]} 16. dxc5 {[%clk 0:01:42]}  Nxc5 {[%clk 0:01:43]} 17. Nxc5 {[%clk 0:01:41]}  Bxc5 {[%clk 0:01:44]} 18. Bb5+ {[%clk 0:01:42]}  Ke7 {[%clk 0:01:36]} 19. b4 {[%clk 0:01:38]}  axb4 {[%clk 0:01:24]} 20. cxb4 {[%clk 0:01:38]}  Be3 {[%clk 0:01:25]} 21. Nxe3 {[%clk 0:01:09]}  Nxe3+ {[%clk 0:01:23]} 22. Bxe3 {[%clk 0:01:10]}  Qxe3 {[%clk 0:01:23]} 23. Qc1 {[%clk 0:01:11]}  Qe4+ {[%clk 0:01:03]} 24. Kg1 {[%clk 0:00:59]}  Rhc8 {[%clk 0:01:03]} 25. Qe1 {[%clk 0:00:59]}  Qd4+ {[%clk 0:01:00]} 26. Rf2 {[%clk 0:00:44]}  Rc3 {[%clk 0:00:34]} 27. Qd2 {[%clk 0:00:27]}  Qxb4 {[%clk 0:00:33]} 28. Rc1 {[%clk 0:00:27]}  Rac8 {[%clk 0:00:32]} 29. Rxc3 {[%clk 0:00:25]}  Rxc3 {[%clk 0:00:33]} 30. f5 {[%clk 0:00:26]}  Qb1+ {[%clk 0:00:12]} 31. Rf1 {[%clk 0:00:23]}  Qc2 {[%clk 0:00:06]} 32. Qg5+ {[%clk 0:00:20]}  f6 {[%clk 0:00:06]} 33. exf6+ {[%clk 0:00:20]}  gxf6 {[%clk 0:00:06]} 34. Qxg6 {[%clk 0:00:20]}  Re3 {[%clk 0:00:03]} 35. fxe6 {[%clk 0:00:17]}  Rxe6 {[%clk 0:00:01]} 36. Qg7+ {[%clk 0:00:17]}  Kd6 {[%clk 0:00:01]} 37. Qf8+ {[%clk 0:00:17]}  Re7 {[%clk 0:00:01]} 38. Qxf6+ {[%clk 0:00:17]}  Re6 {[%clk 0:00:01]} 39. Qf4+ {[%clk 0:00:17]}  Ke7 {[%clk 0:00:01]} 40. Rc1 {[%clk 0:00:17]} 1-0


[Site "https://www.chess.com"]

[Event "Titled Tuesday Blitz August 09 Early 2022"]
[White "Sokolovsky, Yahli"]
[Black "Perez Rodriguez, Jennifer"]
[WhiteFideId "2820242"]
[BlackFideId "3507831"]
[WhiteElo "1867"]
[BlackElo "2170"]
[Result "1-0"]
[Round "06"]
[TimeControl "180+1"]
[Date "2022.08.09"]
[WhiteClock "0:00:06"]
[BlackClock "0:00:15"]

1. b3 {[%clk 0:03:00]}  e5 {[%clk 0:02:58]} 2. Bb2 {[%clk 0:03:01]}  Nc6 {[%clk 0:02:58]} 3. e3 {[%clk 0:03:02]}  f5 {[%clk 0:02:57]} 4. Nf3 {[%clk 0:02:56]}  d6 {[%clk 0:02:56]} 5. d4 {[%clk 0:02:56]}  e4 {[%clk 0:02:56]} 6. Nfd2 {[%clk 0:02:56]}  Nf6 {[%clk 0:02:56]} 7. c4 {[%clk 0:02:54]}  d5 {[%clk 0:02:55]} 8. Nc3 {[%clk 0:02:54]}  Ne7 {[%clk 0:02:51]} 9. cxd5 {[%clk 0:02:40]}  Nexd5 {[%clk 0:02:50]} 10. Nc4 {[%clk 0:02:38]}  Bb4 {[%clk 0:02:48]} 11. Qd2 {[%clk 0:02:34]}  O-O {[%clk 0:02:46]} 12. Ne5 {[%clk 0:02:34]}  Be6 {[%clk 0:02:43]} 13. Bc4 {[%clk 0:02:34]}  c6 {[%clk 0:02:42]} 14. a3 {[%clk 0:02:04]}  Bd6 {[%clk 0:02:37]} 15. Nxd5 {[%clk 0:02:04]}  cxd5 {[%clk 0:02:36]} 16. Be2 {[%clk 0:02:02]}  Rc8 {[%clk 0:02:30]} 17. O-O {[%clk 0:02:00]}  Nd7 {[%clk 0:02:28]} 18. f4 {[%clk 0:01:54]}  exf3 {[%clk 0:02:23]} 19. Bxf3 {[%clk 0:01:40]}  Qb6 {[%clk 0:02:11]} 20. b4 {[%clk 0:01:34]}  Nf6 {[%clk 0:02:11]} 21. Rac1 {[%clk 0:01:27]}  Ne4 {[%clk 0:02:10]} 22. Bxe4 {[%clk 0:01:26]}  fxe4 {[%clk 0:02:03]} 23. Rxf8+ {[%clk 0:01:15]}  Rxf8 {[%clk 0:02:00]} 24. Qe2 {[%clk 0:01:10]}  Qd8 {[%clk 0:01:46]} 25. Rf1 {[%clk 0:01:06]}  Qg5 {[%clk 0:01:43]} 26. Rxf8+ {[%clk 0:01:06]}  Bxf8 {[%clk 0:01:41]} 27. Qf2 {[%clk 0:00:40]}  g6 {[%clk 0:01:24]} 28. Qf4 {[%clk 0:00:32]}  Qh5 {[%clk 0:01:15]} 29. g4 {[%clk 0:00:31]}  Qh4 {[%clk 0:01:12]} 30. Bc3 {[%clk 0:00:29]}  Bh6 {[%clk 0:01:09]} 31. Qf2 {[%clk 0:00:22]}  Qg5 {[%clk 0:01:02]} 32. Bd2 {[%clk 0:00:19]}  Bg7 {[%clk 0:00:48]} 33. h3 {[%clk 0:00:12]}  h5 {[%clk 0:00:46]} 34. h4 {[%clk 0:00:09]}  Qe7 {[%clk 0:00:41]} 35. g5 {[%clk 0:00:03]}  Bf5 {[%clk 0:00:40]} 36. Qf4 {[%clk 0:00:02]}  Bf8 {[%clk 0:00:38]} 37. Kf2 {[%clk 0:00:01]}  a5 {[%clk 0:00:37]} 38. Ke2 {[%clk 0:00:02]}  Kg7 {[%clk 0:00:34]} 39. bxa5 {[%clk 0:00:02]}  Qxa3 {[%clk 0:00:34]} 40. Qf2 {[%clk 0:00:02]}  Qa4 {[%clk 0:00:32]} 41. Qe1 {[%clk 0:00:03]}  Qb5+ {[%clk 0:00:33]} 42. Kf2 {[%clk 0:00:03]}  Bd6 {[%clk 0:00:31]} 43. Qc1 {[%clk 0:00:04]}  Qe8 {[%clk 0:00:30]} 44. Qc3 {[%clk 0:00:04]}  Bc8 {[%clk 0:00:28]} 45. Qb2 {[%clk 0:00:04]}  Qe6 {[%clk 0:00:29]} 46. Qb6 {[%clk 0:00:05]}  Qf5+ {[%clk 0:00:29]} 47. Ke1 {[%clk 0:00:05]}  Be7 {[%clk 0:00:27]} 48. Qc7 {[%clk 0:00:05]}  Kf8 {[%clk 0:00:26]} 49. Kd1 {[%clk 0:00:03]}  Qe6 {[%clk 0:00:22]} 50. Nxg6+ {[%clk 0:00:03]}  Qxg6 {[%clk 0:00:22]} 51. Qxc8+ {[%clk 0:00:04]}  Kf7 {[%clk 0:00:23]} 52. Qxb7 {[%clk 0:00:04]}  Qf5 {[%clk 0:00:22]} 53. a6 {[%clk 0:00:05]}  Qf1+ {[%clk 0:00:22]} 54. Kc2 {[%clk 0:00:05]}  Qd3+ {[%clk 0:00:23]} 55. Kc1 {[%clk 0:00:05]}  Qf1+ {[%clk 0:00:23]} 56. Kb2 {[%clk 0:00:05]}  Qd3 {[%clk 0:00:23]} 57. Bc3 {[%clk 0:00:05]}  Qe2+ {[%clk 0:00:20]} 58. Kc1 {[%clk 0:00:05]}  Ke6 {[%clk 0:00:18]} 59. Qc6+ {[%clk 0:00:05]}  Kf7 {[%clk 0:00:17]} 60. Qxd5+ {[%clk 0:00:05]}  Kf8 {[%clk 0:00:18]} 61. Qxe4 {[%clk 0:00:05]}  Ba3+ {[%clk 0:00:18]} 62. Kb1 {[%clk 0:00:05]}  Qd1+ {[%clk 0:00:18]} 63. Ka2 {[%clk 0:00:05]}  Qa4 {[%clk 0:00:17]} 64. Qa8+ {[%clk 0:00:05]}  Kg7 {[%clk 0:00:17]} 65. Qb7+ {[%clk 0:00:06]}  Be7+ {[%clk 0:00:16]} 66. Kb2 {[%clk 0:00:05]}  Kf7 {[%clk 0:00:17]} 67. Qb3+ {[%clk 0:00:05]}  Qxb3+ {[%clk 0:00:17]} 68. Kxb3 {[%clk 0:00:06]}  Bd6 {[%clk 0:00:15]} 69. a7 {[%clk 0:00:06]} 1-0


[Site "https://www.chess.com"]

[Event "Titled Tuesday Blitz August 09 Early 2022"]
[White "Tica, Sven"]
[Black "Maksimovic, Bojan"]
[WhiteFideId "14526948"]
[BlackFideId "14408120"]
[WhiteElo "2635"]
[BlackElo "2807"]
[Result "0-1"]
[Round "06"]
[TimeControl "180+1"]
[Date "2022.08.09"]
[WhiteClock "0:01:54"]
[BlackClock "0:02:15"]

1. e4 {[%clk 0:03:00]}  e5 {[%clk 0:02:59]} 2. f4 {[%clk 0:03:00]}  exf4 {[%clk 0:02:57]} 3. Nf3 {[%clk 0:03:00]}  g5 {[%clk 0:02:56]} 4. Nc3 {[%clk 0:02:57]}  Bg7 {[%clk 0:02:43]} 5. d4 {[%clk 0:02:57]}  d6 {[%clk 0:02:40]} 6. g3 {[%clk 0:02:57]}  Nc6 {[%clk 0:02:27]} 7. gxf4 {[%clk 0:02:26]}  g4 {[%clk 0:02:22]} 8. d5 {[%clk 0:01:56]}  gxf3 {[%clk 0:02:15]} 9. dxc6 {[%clk 0:01:54]}  Qh4+ {[%clk 0:02:15]} 10. Kd2 {[%clk 0:01:54]}  Qf2+ {[%clk 0:02:15]} 11. Kd3 {[%clk 0:01:54]}  Qd4# {[%clk 0:02:15]} 0-1


[Site "https://www.chess.com"]

[Event "Titled Tuesday Blitz August 09 Early 2022"]
[White "Uskov, Artem"]
[Black "Belov, Vladimir"]
[WhiteFideId "34254854"]
[BlackFideId "4132394"]
[WhiteElo "2583"]
[BlackElo "2792"]
[Result "0-1"]
[Round "06"]
[TimeControl "180+1"]
[Date "2022.08.09"]
[WhiteClock "0:00:03"]
[BlackClock "0:00:08"]

1. e4 {[%clk 0:02:56]}  c5 {[%clk 0:02:58]} 2. Nf3 {[%clk 0:02:56]}  d6 {[%clk 0:02:59]} 3. d4 {[%clk 0:02:57]}  cxd4 {[%clk 0:03:00]} 4. Nxd4 {[%clk 0:02:57]}  Nf6 {[%clk 0:03:00]} 5. f3 {[%clk 0:02:58]}  e5 {[%clk 0:03:00]} 6. Nb3 {[%clk 0:02:57]}  a5 {[%clk 0:03:00]} 7. Bb5+ {[%clk 0:02:53]}  Nbd7 {[%clk 0:02:57]} 8. a4 {[%clk 0:02:52]}  Be7 {[%clk 0:02:53]} 9. O-O {[%clk 0:02:50]}  O-O {[%clk 0:02:53]} 10. Nc3 {[%clk 0:02:50]}  Nb6 {[%clk 0:02:49]} 11. Be3 {[%clk 0:02:49]}  Be6 {[%clk 0:02:49]} 12. Qe2 {[%clk 0:02:47]}  Qc7 {[%clk 0:02:46]} 13. Rfd1 {[%clk 0:02:44]}  d5 {[%clk 0:02:37]} 14. exd5 {[%clk 0:02:40]}  Nbxd5 {[%clk 0:02:37]} 15. Nxd5 {[%clk 0:02:39]}  Nxd5 {[%clk 0:02:37]} 16. Bd2 {[%clk 0:02:34]}  Rfd8 {[%clk 0:02:22]} 17. Kh1 {[%clk 0:02:31]}  b6 {[%clk 0:02:00]} 18. Rac1 {[%clk 0:02:17]}  h6 {[%clk 0:01:59]} 19. c4 {[%clk 0:02:15]}  Nb4 {[%clk 0:01:54]} 20. Bc3 {[%clk 0:02:10]}  Bf6 {[%clk 0:01:20]} 21. Bxb4 {[%clk 0:02:01]}  axb4 {[%clk 0:01:20]} 22. Nd2 {[%clk 0:02:00]}  Bg5 {[%clk 0:01:19]} 23. Ra1 {[%clk 0:01:52]}  f5 {[%clk 0:01:18]} 24. Nf1 {[%clk 0:01:45]}  Qc5 {[%clk 0:01:15]} 25. b3 {[%clk 0:01:21]}  Bf7 {[%clk 0:01:14]} 26. Ng3 {[%clk 0:01:20]}  g6 {[%clk 0:01:01]} 27. Nf1 {[%clk 0:01:05]}  h5 {[%clk 0:00:59]} 28. g3 {[%clk 0:00:52]}  h4 {[%clk 0:00:58]} 29. Kg2 {[%clk 0:00:52]}  Kg7 {[%clk 0:00:56]} 30. Rxd8 {[%clk 0:00:48]}  Rxd8 {[%clk 0:00:55]} 31. Rd1 {[%clk 0:00:49]}  Rd4 {[%clk 0:00:50]} 32. Re1 {[%clk 0:00:40]}  Bf6 {[%clk 0:00:46]} 33. Qf2 {[%clk 0:00:39]}  Qd6 {[%clk 0:00:41]} 34. Re2 {[%clk 0:00:36]}  Rd3 {[%clk 0:00:34]} 35. Rd2 {[%clk 0:00:29]}  Rd4 {[%clk 0:00:26]} 36. Re2 {[%clk 0:00:22]}  Bg5 {[%clk 0:00:22]} 37. Ne3 {[%clk 0:00:20]}  Rd3 {[%clk 0:00:21]} 38. g4 {[%clk 0:00:08]}  Qd4 {[%clk 0:00:20]} 39. Nc2 {[%clk 0:00:04]}  Qxf2+ {[%clk 0:00:19]} 40. Kxf2 {[%clk 0:00:05]}  fxg4 {[%clk 0:00:12]} 41. fxg4 {[%clk 0:00:06]}  Rxb3 {[%clk 0:00:12]} 42. Ne1 {[%clk 0:00:05]}  Bf4 {[%clk 0:00:12]} 43. Ng2 {[%clk 0:00:04]}  Bxh2 {[%clk 0:00:11]} 44. Re3 {[%clk 0:00:03]}  Bg3+ {[%clk 0:00:12]} 45. Kf3 {[%clk 0:00:03]}  Rxe3+ {[%clk 0:00:11]} 46. Nxe3 {[%clk 0:00:04]}  b3 {[%clk 0:00:10]} 47. Nd1 {[%clk 0:00:04]}  Bf4 {[%clk 0:00:10]} 48. Kg2 {[%clk 0:00:02]}  Be6 {[%clk 0:00:09]} 49. Kh3 {[%clk 0:00:03]}  g5 {[%clk 0:00:10]} 50. Bc6 {[%clk 0:00:03]}  Kf6 {[%clk 0:00:09]} 51. Nb2 {[%clk 0:00:03]}  Bc1 {[%clk 0:00:09]} 52. Nd3 {[%clk 0:00:04]}  b2 {[%clk 0:00:10]} 53. Nxb2 {[%clk 0:00:04]}  Bxb2 {[%clk 0:00:10]} 54. c5 {[%clk 0:00:05]}  bxc5 {[%clk 0:00:08]} 55. a5 {[%clk 0:00:06]}  Bc8 {[%clk 0:00:08]} 56. Bb5 {[%clk 0:00:04]}  Bd4 {[%clk 0:00:07]} 57. a6 {[%clk 0:00:04]}  c4 {[%clk 0:00:06]} 58. Bxc4 {[%clk 0:00:04]}  Ba7 {[%clk 0:00:07]} 59. Bd3 {[%clk 0:00:04]}  Ke7 {[%clk 0:00:06]} 60. Be4 {[%clk 0:00:03]}  Kd6 {[%clk 0:00:06]} 61. Bf3 {[%clk 0:00:03]}  Kc5 {[%clk 0:00:06]} 62. Be4 {[%clk 0:00:02]}  Bxa6 {[%clk 0:00:06]} 63. Bf3 {[%clk 0:00:02]}  Kd4 {[%clk 0:00:07]} 64. Bg2 {[%clk 0:00:03]}  Ke3 {[%clk 0:00:07]} 65. Bd5 {[%clk 0:00:02]}  Kf4 {[%clk 0:00:07]} 66. Be6 {[%clk 0:00:02]}  e4 {[%clk 0:00:08]} 67. Bf5 {[%clk 0:00:02]}  e3 {[%clk 0:00:08]} 68. Kg2 {[%clk 0:00:03]}  e2 {[%clk 0:00:08]} 0-1


[Site "https://www.chess.com"]

[Event "Titled Tuesday Blitz August 09 Early 2022"]
[White "Vakhlamov, Igor L."]
[Black "Espinosa Veloz, Ermes"]
[WhiteFideId "24126748"]
[BlackFideId "3507424"]
[WhiteElo "2401"]
[BlackElo "2333"]
[Result "0-1"]
[Round "06"]
[TimeControl "180+1"]
[Date "2022.08.09"]
[WhiteClock "0:01:44"]
[BlackClock "0:00:19"]

1. e4 {[%clk 0:02:55]}  e5 {[%clk 0:02:59]} 2. Nf3 {[%clk 0:02:56]}  Nc6 {[%clk 0:02:57]} 3. Nc3 {[%clk 0:02:56]}  Nf6 {[%clk 0:02:57]} 4. Bb5 {[%clk 0:02:56]}  Nd4 {[%clk 0:02:55]} 5. Nxd4 {[%clk 0:02:55]}  exd4 {[%clk 0:02:55]} 6. e5 {[%clk 0:02:56]}  dxc3 {[%clk 0:02:54]} 7. exf6 {[%clk 0:02:57]}  Qxf6 {[%clk 0:02:50]} 8. dxc3 {[%clk 0:02:57]}  Qe5+ {[%clk 0:02:32]} 9. Be2 {[%clk 0:02:56]}  Bd6 {[%clk 0:02:31]} 10. g3 {[%clk 0:02:56]}  O-O {[%clk 0:02:29]} 11. O-O {[%clk 0:02:55]}  Qf6 {[%clk 0:02:25]} 12. Bd3 {[%clk 0:02:53]}  Re8 {[%clk 0:02:10]} 13. Re1 {[%clk 0:02:44]}  Rxe1+ {[%clk 0:02:09]} 14. Qxe1 {[%clk 0:02:45]}  Qe7 {[%clk 0:02:06]} 15. Be3 {[%clk 0:02:41]}  b6 {[%clk 0:01:57]} 16. Qf1 {[%clk 0:02:33]}  Bb7 {[%clk 0:01:55]} 17. Re1 {[%clk 0:02:33]}  Qf6 {[%clk 0:01:50]} 18. Qh3 {[%clk 0:02:17]}  g6 {[%clk 0:01:39]} 19. Bf1 {[%clk 0:01:55]}  Qf3 {[%clk 0:00:43]} 20. Bg2 {[%clk 0:01:54]}  Qxg2+ {[%clk 0:00:43]} 21. Qxg2 {[%clk 0:01:55]}  Bxg2 {[%clk 0:00:43]} 22. Kxg2 {[%clk 0:01:56]}  Re8 {[%clk 0:00:43]} 23. Rd1 {[%clk 0:01:53]}  f5 {[%clk 0:00:41]} 24. a4 {[%clk 0:01:53]}  a5 {[%clk 0:00:40]} 25. Bxb6 {[%clk 0:01:50]}  Rb8 {[%clk 0:00:38]} 26. Bxa5 {[%clk 0:01:46]}  Rxb2 {[%clk 0:00:38]} 27. Bb4 {[%clk 0:01:46]}  Bxb4 {[%clk 0:00:36]} 28. cxb4 {[%clk 0:01:47]}  Rxb4 {[%clk 0:00:36]} 29. Re1 {[%clk 0:01:47]}  Rxa4 {[%clk 0:00:31]} 30. Re7 {[%clk 0:01:47]}  Rc4 {[%clk 0:00:26]} 31. Rxd7 {[%clk 0:01:47]}  Rxc2 {[%clk 0:00:26]} 32. Kf3 {[%clk 0:01:47]}  Rc4 {[%clk 0:00:26]} 33. h4 {[%clk 0:01:47]}  h6 {[%clk 0:00:25]} 34. Ke3 {[%clk 0:01:47]}  g5 {[%clk 0:00:24]} 35. h5 {[%clk 0:01:45]}  f4+ {[%clk 0:00:23]} 36. Kd3 {[%clk 0:01:45]}  Rc5 {[%clk 0:00:19]} 37. Kd4 {[%clk 0:01:42]}  Rc1 {[%clk 0:00:19]} 38. gxf4 {[%clk 0:01:41]}  Rd1+ {[%clk 0:00:19]} 39. Ke5 {[%clk 0:01:37]}  Rxd7 {[%clk 0:00:20]} 40. fxg5 {[%clk 0:01:36]}  hxg5 {[%clk 0:00:19]} 41. Ke6 {[%clk 0:01:37]}  Rf7 {[%clk 0:00:20]} 42. f4 {[%clk 0:01:37]}  gxf4 {[%clk 0:00:18]} 43. h6 {[%clk 0:01:37]}  f3 {[%clk 0:00:19]} 44. h7+ {[%clk 0:01:38]}  Rxh7 {[%clk 0:00:19]} 45. Kd5 {[%clk 0:01:39]}  f2 {[%clk 0:00:19]} 46. Kc6 {[%clk 0:01:40]}  f1=Q {[%clk 0:00:17]} 47. Kc5 {[%clk 0:01:40]}  Qc1+ {[%clk 0:00:16]} 48. Kd5 {[%clk 0:01:41]}  Rh2 {[%clk 0:00:17]} 49. Kd4 {[%clk 0:01:42]}  Rd2+ {[%clk 0:00:17]} 50. Ke3 {[%clk 0:01:43]}  Qd1 {[%clk 0:00:18]} 51. Kf4 {[%clk 0:01:42]}  Re2 {[%clk 0:00:18]} 52. Kf3 {[%clk 0:01:43]}  Qf1+ {[%clk 0:00:19]} 53. Kg3 {[%clk 0:01:43]}  Rg2+ {[%clk 0:00:19]} 54. Kh3 {[%clk 0:01:44]}  Qh1# {[%clk 0:00:19]} 0-1


[Site "https://www.chess.com"]